[Event "Teplice Open 2022"]
[Site "Teplice"]
[Date "2022.06.21"]
[Round "4.1"]
[White "Demchenko, Anton"]
[Black "Karthik Venkataraman"]
[Result "1/2-1/2"]
[ECO "A48"]
[WhiteElo "2654"]
[BlackElo "2480"]
[Annotator "TA"]
[PlyCount "92"]
[EventDate "2022.06.18"]
[EventType "swiss"]
[EventCountry "CZE"]
[SourceTitle "playchess.com"]
[Source "ChessBase"]
[SourceQuality "1"]
[TimeControl "40/5400+30:1800+30"]

{[%evp 11,92,7,15,16,27,22,31,27,54,0,5,8,13,12,0,-8,36,13,19,27,14,22,18,0,1,1,26,0,0,0,7,0,0,0,40,-11,44,0,10,0,58,6,8,0,31,22,33,21,30,23,25,10,30,27,77,11,0,16,24,-26,0,0,0,-75,-75,-75,-75,-75,-75,-75,-60,-184,-181,-186,-155,-156,-185,-184,0,-103,-25,-89,0]} 1. Nf3 {[%emt 0:01:00]} Nf6 {[%emt 0:03:22]} 2. d4 {[%emt 0:00:31]} g6 {[%emt 0:01:21]} 3. Bf4 {[%emt 0:00:37]} Bg7 {[%emt 0:00:08]} 4. c3 {[%emt 0:00:10]} O-O {[%emt 0:00:14]} 5. Nbd2 {[%emt 0:00:05]} d6 {[%emt 0:00:07]} 6. e4 {[%emt 0:00:15]} c5 {[%emt 0:02:41]} 7. dxc5 {[%emt 0:00:16] A48: 1 d4 Nf6 2 Nf3 g6: Torre, London and Colle Systems.} dxc5 {[%emt 0:00:06]} 8. h3 {[%emt 0:00:18]} Nc6 {[%emt 0:00:27]} 9. Bb5 {[%emt 0:03:01] White is slightly better.} Na5 {[%emt 0:03:32]} 10. Be2 {[%emt 0:09:01]} (10. O-O $14) 10... b6 $11 {[%emt 0:07:06]} 11. Qc2 {[%emt 0:02:10]} Bb7 {[%emt 0:01:09]} 12. O-O {[%emt 0:04:50] [#]} Qc8 $146 {[%emt 0:00:46][%cal Of6e4]} ({Predecessor:} 12... Qd7 13. e5 Nd5 14. Bg3 Qc6 15. Bd3 b5 16. Rfe1 Rad8 17. h4 Qb6 18. h5 Nc7 19. hxg6 hxg6 {½-½ (41) Pilgram,K (1959)-Bujdak,P (1928) LSS email 2015}) 13. Rfe1 {[%emt 0:03:02]} Rd8 {[%emt 0:00:53][%cal Of6e4]} (13... Nxe4 $5 14. Nxe4 Qf5 $11) 14. Bf1 {[%emt 0:09:42]} Ba6 {[%emt 0:02:42]} 15. Bxa6 {[%emt 0:07:15]} Qxa6 {[%emt 0:00:05]} 16. e5 {[%emt 0:02:14]} Nd5 {[%emt 0:00:17]} 17. Bg5 {[%emt 0:07:06]} Qc8 {[%emt 0:00:28]} 18. Qa4 {[%emt 0:05:40]} h6 {[%emt 0:01:13]} 19. Bh4 {[%emt 0:11:36][%cal Oe5e6]} (19. Qh4 $5 {[%cal Rg5h6]}) 19... Qc6 {[%emt 0:09:20]} 20. Qe4 {[%emt 0:02:23]} Qe6 {[%emt 0:01:38]} 21. Bg3 {[%emt 0:00:22]} Nc6 {[%emt 0:00:35]} 22. Nf1 {[%emt 0:01:56]} Rd7 {[%emt 0:00:59]} 23. N1h2 {[%emt 0:00:57]} (23. Nh4 $14) 23... Rdd8 {[%emt 0:13:18]} (23... Nc7 $11) 24. Ng4 {[%emt 0:01:58]} (24. Nh4 $5 {[%cal Rf2f4]}) 24... Kh7 {[%emt 0:02:51]} 25. Qc2 {[%emt 0:05:22]} Qf5 {[%emt 0:03:25]} (25... Rac8 $11) 26. Qa4 {[%emt 0:00:54]} (26. Re4 $1 $14) 26... Qe6 $1 {[%emt 0:01:26]} 27. Re4 {[%emt 0:01:25]} Kg8 {[%emt 0:02:00]} 28. Rae1 {[%emt 0:01:06]} a6 {[%emt 0:10:40]} 29. Qc2 {[%emt 0:00:38]} h5 {[%emt 0:01:14]} 30. Ngh2 {[%emt 0:02:54]} Bh6 {[%emt 0:00:06] Prevents Qc1.} 31. Nf1 {[%emt 0:05:10]} b5 {[%emt 0:01:16]} 32. Bh2 {[%emt 0:03:35]} Kf8 {[%emt 0:05:48]} (32... Na5 $11 {keeps the balance.}) 33. Nh4 {[%emt 0:00:21]} ({White should try} 33. N1d2 $16) 33... g5 {[%emt 0:04:40]} 34. Nf3 {[%emt 0:00:37]} Qg6 {[%emt 0:00:04]} 35. g4 {[%emt 0:02:49]} ({White should play} 35. e6) 35... e6 {[%emt 0:01:45]} 36. Qe2 {[%emt 0:02:04]} c4 $36 {[%emt 0:00:34][%mdl 2048] Black has some pressure.} 37. Rd1 {[%emt 0:03:09]} (37. h4 $11) 37... Nf4 $1 $17 {[%emt 0:05:52]} 38. Rxd8+ {[%emt 0:00:01]} Rxd8 {[%emt 0:00:05][%cal Ba8d8,Bd8d3,Bd3c3][%mdl 32]} 39. Bxf4 {[%emt 0:00:05]} gxf4 {[%emt 0:00:03]} 40. N1h2 {[%emt 0:01:28]} Rd3 {[%emt 0:00:55]} 41. b3 {[%emt 0:07:13]} (41. Nh4 $15 Qh7 42. N4f3) 41... Rxc3 $19 {[%emt 0:08:33] aiming for ...Rc1+.} 42. bxc4 {[%emt 0:00:29] [#]} b4 $1 {[%emt 0:04:06]} 43. Nh4 {[%emt 0:09:38]} Qh7 {[%emt 0:02:45]} 44. N4f3 {[%emt 0:00:28]} Qg6 {[%emt 0:04:00]} (44... hxg4 $19 45. hxg4 Kg8) 45. Nh4 $17 {[%emt 0:00:07] [#]} Qg5 {[%emt 0:03:42]} (45... Qg7 $1 $17 46. N4f3 Qg6) 46. N4f3 $1 $11 {[%emt 0:00:16]} Qg6 {[%emt 0:01:32] Weighted Error Value: White=0.18 (very precise) /Black=0.18 (very precise)} (46... Qg7 $17) 1/2-1/2

[Event "Teplice Open 2022"]
[Site "Teplice"]
[Date "2022.06.21"]
[Round "4.2"]
[White "Fridman, Daniel"]
[Black "Vlasak, Lukas"]
[Result "1-0"]
[ECO "D31"]
[WhiteElo "2605"]
[BlackElo "2437"]
[Annotator "TA"]
[PlyCount "127"]
[EventDate "2022.06.18"]
[EventType "swiss"]
[EventCountry "CZE"]
[SourceTitle "playchess.com"]
[Source "ChessBase"]
[SourceQuality "1"]
[TimeControl "40/5400+30:1800+30"]

{[%evp 9,127,26,29,9,30,26,33,29,39,27,32,18,21,7,15,0,11,0,14,0,0,0,0,0,0,0,0,0,4,4,6,0,9,0,14,8,12,10,22,16,14,12,16,17,22,13,24,22,31,32,35,27,27,30,37,33,39,35,47,43,79,105,85,60,61,54,146,142,133,143,133,148,214,197,307,306,299,264,231,224,156,0,0,0,113,126,384,385,389,407,389,385,333,114,113,127,308,225,470,447,1060,1043,942,926,1312,1233,29967,29966,29961,29950,29972,29973,29973,29974,29973,29974,29974,29974,29989,29990]} 1. d4 {[%emt 0:11:30]} d5 {[%emt 0:00:15]} 2. c4 {[%emt 0:00:25]} e6 {[%emt 0:00:13]} 3. Nf3 {[%emt 0:00:27]} a6 {[%emt 0:00:24]} 4. cxd5 {[%emt 0:01:11]} exd5 {[%emt 0:00:10]} 5. Nc3 {[%emt 0:00:03]} c6 {[%emt 0:00:16]} 6. Qc2 {[%emt 0:02:37] D31: Queen's Gambit Declined: Semi-Slav without ...Nf6 (+ Marshall Gambit and Noteboom) and Exchange Variation lines without ...Nf6.} Nf6 {[%emt 0:00:15]} 7. Bg5 {[%emt 0:00:10]} Be6 {[%emt 0:00:07]} 8. e3 {[%emt 0:01:44] White is slightly better.} h6 {[%emt 0:00:25]} 9. Bf4 {[%emt 0:01:08]} c5 {[%emt 0:02:43]} 10. dxc5 {[%emt 0:04:02]} Bxc5 {[%emt 0:01:38]} 11. Rd1 {[%emt 0:03:53][%cal Oc3d5]} Qe7 {[%emt 0:07:55]} 12. Be2 {[%emt 0:10:56]} Nc6 {[%emt 0:01:47]} 13. O-O {[%emt 0:00:16]} O-O {[%emt 0:00:21] [#]} 14. a3 $146 {[%emt 0:00:05]} ({Predecessor:} 14. Ne5 Rac8 15. Nxc6 Rxc6 16. Bf3 Rd8 17. Be5 Nd7 18. Bd4 Bxd4 19. Rxd4 Ne5 20. Be2 {0-1 (33) Sjugirov,S (2680)-Warmerdam,M (2607) Chess.com INT 2022}) 14... Rac8 {[%emt 0:06:03]} 15. Rfe1 {[%emt 0:03:42]} Rfd8 {[%emt 0:05:58]} 16. Nd4 {[%emt 0:04:17]} Nxd4 {[%emt 0:02:38]} 17. exd4 {[%emt 0:00:07]} Bd6 {[%emt 0:00:09]} 18. Bxd6 {[%emt 0:00:49]} Qxd6 {[%emt 0:00:07]} 19. Bd3 {[%emt 0:00:59]} Re8 {[%emt 0:02:49]} 20. h3 {[%emt 0:03:34]} Bd7 {[%emt 0:05:34]} 21. Qd2 {[%emt 0:05:33]} Rxe1+ {[%emt 0:03:29]} 22. Rxe1 {[%emt 0:00:32]} Re8 {[%emt 0:00:23]} 23. Re3 {[%emt 0:01:44]} Re6 {[%emt 0:05:29]} 24. Rxe6 {[%emt 0:02:42]} Qxe6 {[%emt 0:10:32]} 25. Qf4 {[%emt 0:01:07]} Bc6 {[%emt 0:01:46]} 26. Ne2 {[%emt 0:02:42]} Ne8 {[%emt 0:03:58]} 27. f3 {[%emt 0:07:13]} Nd6 {[%emt 0:03:32]} 28. Kf2 {[%emt 0:01:49]} Bd7 {[%emt 0:13:36]} 29. h4 {[%emt 0:02:22]} Kf8 {[%emt 0:04:42]} 30. h5 {[%emt 0:04:00]} Ne8 {[%emt 0:01:08]} 31. Qe5 {[%emt 0:02:52]} f6 {[%emt 0:02:17]} 32. Qb8 {[%emt 0:06:03]} Qb6 {[%emt 0:00:08]} 33. b4 {[%emt 0:00:14]} Ke7 {[%emt 0:04:40]} 34. Ke3 {[%emt 0:01:31]} Bb5 {[%emt 0:05:11]} 35. Nf4 {[%emt 0:05:09]} Qc6 {[%emt 0:00:22]} 36. Bxb5 {[%emt 0:01:10] Really sharp! White is much more active.} axb5 $16 {[%emt 0:01:28][%mdl 4096] Endgame KQN-KQN} 37. Kf2 {[%emt 0:00:14]} Qc2+ {[%emt 0:03:54]} (37... Kd7 $1 $14) 38. Kg3 $1 {[%emt 0:02:54]} Qc7 {[%emt 0:00:06]} 39. Qxc7+ {[%emt 0:01:07]} Nxc7 {[%emt 0:00:06] KN-KN} 40. Kg4 {[%emt 0:00:05]} Ne6 {[%emt 0:02:17]} (40... Ke8 $16 41. Ne2 Kf7) 41. Nxd5+ $18 {[%emt 0:35:49]} Kd6 {[%emt 0:09:23]} (41... Kf7 $142) 42. Ne3 {[%emt 0:00:00] Kf5 is the strong threat.} Nxd4 {[%emt 0:00:18] [#]} 43. Kf4 {[%emt 0:00:00]} Ke6 {[%emt 0:01:58]} 44. Ke4 {[%emt 0:00:00]} Ne2 {[%emt 0:00:49]} 45. Nf5 {[%emt 0:00:00] Prevents Ng3+.} (45. g4 $16) 45... Nc3+ $11 {[%emt 0:01:49]} 46. Kf4 $1 {[%emt 0:00:00]} Kf7 {[%emt 0:06:56]} (46... Nd5+ $11 47. Kg4 g6 48. hxg6 h5+ 49. Kxh5 Kxf5) 47. Nd6+ {[%emt 0:00:00]} Ke6 $2 {[%emt 0:05:09][%mdl 8192]} (47... Ke7 $16 {was necessary.} 48. Nxb7 Nb1) 48. Nxb7 $18 {[%emt 0:00:00]} f5 {[%emt 0:00:28]} 49. Nc5+ {[%emt 0:00:00]} Kf6 {[%emt 0:00:06]} 50. Ke3 {[%emt 0:00:00]} Ke5 {[%emt 0:05:00] [#]} 51. Nd3+ $2 {[%emt 0:00:00]} (51. Nd7+ $1 $18 {is the precise move to win.} Kd6 52. Nb6) 51... Kd5 $16 {[%emt 0:00:35]} 52. Nf4+ {[%emt 0:02:09]} Ke5 $2 {[%emt 0:00:23]} (52... Kc4 $16 {might work better.} 53. g4 Nb1) 53. Ne2 {[%emt 0:01:42]} Nb1 {[%emt 0:01:04]} (53... Nd5+ {was called for.} 54. Kd2 Nc7) 54. f4+ $18 {[%emt 0:00:07]} Kf6 {[%emt 0:01:14]} (54... Kd5 $142 55. Kd3 Nxa3) 55. Kd4 {[%emt 0:00:11]} Nxa3 {[%emt 0:00:09]} 56. Kc5 {[%emt 0:00:06]} g6 {[%emt 0:01:02]} 57. Nd4 {[%emt 0:00:26]} gxh5 {[%emt 0:01:52]} 58. Nxb5 {[%emt 0:00:06] White mates.} Nc2 {[%emt 0:00:34]} 59. Nd4 {[%emt 0:00:40]} Ne3 {[%emt 0:00:06]} 60. b5 {[%emt 0:01:06][%cal Bb4b5,Bb5b6][%mdl 32]} Ke7 {[%emt 0:00:12]} 61. b6 {[%emt 0:00:52]} Kd7 {[%emt 0:00:18]} 62. Nb5 {[%emt 0:00:29]} Kc8 {[%emt 0:00:18]} 63. Kc6 {[%emt 0:00:17]} Kb8 {[%emt 0:00:14]} 64. Nc7 {[%emt 0:00:17] Weighted Error Value: White=0.10 (very precise) /Black=0.38} 1-0

[Event "Teplice Open 2022"]
[Site "Teplice"]
[Date "2022.06.21"]
[Round "4.3"]
[White "Pultinevicius, Paulius"]
[Black "Fataliyeva, Ulviyya"]
[Result "1-0"]
[ECO "D11"]
[WhiteElo "2536"]
[BlackElo "2348"]
[Annotator "TA"]
[PlyCount "69"]
[EventDate "2022.06.18"]
[EventType "swiss"]
[EventCountry "CZE"]
[SourceTitle "playchess.com"]
[Source "ChessBase"]
[SourceQuality "1"]
[TimeControl "40/5400+30:1800+30"]

{[%evp 16,69,54,14,29,6,42,36,42,0,49,44,54,10,50,27,55,27,26,2,5,11,52,47,86,99,106,112,93,0,83,16,64,53,64,60,70,0,216,212,260,265,241,276,344,321,306,337,333,245,462,443,1129,1116,1055,1037]} 1. Nf3 {[%emt 0:00:03]} d5 {[%emt 0:00:05]} 2. g3 {[%emt 0:00:16]} Bg4 {[%emt 0:00:21]} 3. Bg2 {[%emt 0:02:16]} Nd7 {[%emt 0:00:07]} 4. d4 {[%emt 0:03:53]} e6 {[%emt 0:05:30]} 5. O-O {[%emt 0:00:30]} Ngf6 {[%emt 0:02:25]} 6. c4 {[%emt 0:00:48]} c6 {[%emt 0:00:48]} 7. b3 {[%emt 0:03:25]} Bd6 {[%emt 0:02:17]} 8. Bb2 {[%emt 0:01:10]} Bxf3 {[%emt 0:03:19]} 9. Bxf3 {[%emt 0:01:21]} Qe7 {[%emt 0:00:33] D11: Slav Defence: 3 Nf3 sidelines and 3...Nf6 4 e3 Bg4.} 10. a3 {[%emt 0:07:15]} Rd8 {[%emt 0:05:09]} 11. Nc3 {[%emt 0:00:51]} O-O {[%emt 0:02:43] [#] White is slightly better.} 12. Bg2 $146 {[%emt 0:03:06]} ({Predecessor:} 12. Qc2 Bb8 13. Rfe1 dxc4 14. bxc4 e5 15. e3 Rfe8 16. Qb3 e4 17. Bg2 Nf8 18. Rab1 {1-0 (47) Zaragatski,I (2497)-Bernink,H (2224) Netherlands 2013}) 12... Rfe8 {[%emt 0:03:46]} (12... dxc4 $11 13. bxc4 e5) 13. e3 $14 {[%emt 0:12:46]} Bb8 {[%emt 0:06:20]} 14. Re1 {[%emt 0:08:53]} Nb6 {[%emt 0:02:22]} 15. a4 {[%emt 0:01:25]} Nbd7 {[%emt 0:09:08]} 16. Ba3 {[%emt 0:04:51]} Bd6 {[%emt 0:01:06]} 17. c5 {[%emt 0:02:17]} Bc7 {[%emt 0:07:29]} 18. f4 {[%emt 0:01:45]} h6 {[%emt 0:05:40]} 19. b4 {[%emt 0:00:57]} e5 {[%emt 0:11:49]} 20. fxe5 {[%emt 0:12:16] White is more active.} Nxe5 {[%emt 0:00:15]} 21. dxe5 {[%emt 0:00:06]} Bxe5 {[%emt 0:00:12]} 22. Qc1 {[%emt 0:14:24]} (22. Rc1 $16) 22... d4 {[%emt 0:01:24]} (22... h5 $11) 23. Nd1 {[%emt 0:02:21]} (23. Ne2 $16 dxe3 24. Rb1) 23... Ng4 {[%emt 0:06:52]} (23... h5 $1 $11 {was preferrable.}) 24. Ra2 $1 {[%emt 0:01:50]} dxe3 {[%emt 0:05:48][%cal Oe3e2] ...e2! is the strong threat.} 25. Rae2 $1 {[%emt 0:04:43] Strongly threatening Bb2.} (25. Nxe3 $2 Bd4 26. Kh1 Bxe3 $19) 25... Qc7 $1 {[%emt 0:08:00] And now ...Rd3 would win.} 26. Rf1 {[%emt 0:05:06]} (26. Nxe3 $14 Bd4 27. Bb2 $1 Rxe3 28. Rxe3 Bxe3+ 29. Rxe3 Nxe3 30. Qxe3) 26... h5 $2 {[%emt 0:09:08] [#]} (26... Bxg3 $1 $11 {and Black has nothing to worry.} 27. hxg3 Qxg3) 27. Bb2 $1 $18 {[%emt 0:02:49]} (27. Nxe3 $2 Bd4 28. Rfe1 Rxe3 29. Rxe3 Qe5 $19) 27... h4 {[%emt 0:00:45]} 28. Qc4 {[%emt 0:00:39]} Bxb2 {[%emt 0:00:33]} 29. Nxb2 {[%emt 0:00:25] The board is on fire.} ({Don't play} 29. Qxg4 Bd4 30. Qxh4 a5) 29... Ne5 {[%emt 0:00:26]} 30. Qxh4 {[%emt 0:00:20]} Rd2 {[%emt 0:00:03]} 31. Rxd2 {[%emt 0:00:23]} (31. Rxe3 Rxb2 32. Qd4 Rc2 $11) 31... exd2 {[%emt 0:00:01]} 32. Qf4 {[%emt 0:00:26]} ({Not} 32. Be4 Qd8 $18) 32... Qd7 $2 {[%emt 0:00:29]} (32... Rd8 33. Rd1 Qe7) 33. Rd1 {[%emt 0:01:05] White is clearly winning.} Nf3+ {[%emt 0:01:22]} (33... Qe6 $142 34. Rxd2 Qb3) 34. Bxf3 {[%emt 0:00:14]} Re1+ {[%emt 0:00:06]} 35. Kg2 {[%emt 0:00:17] Weighted Error Value: White=0.23 (precise) /Black=0.49} 1-0

[Event "Teplice Open 2022"]
[Site "Teplice"]
[Date "2022.06.21"]
[Round "4.4"]
[White "Yilmazyerli, Mert"]
[Black "Iniyan, P."]
[Result "1-0"]
[ECO "B43"]
[WhiteElo "2502"]
[BlackElo "2518"]
[Annotator "TA"]
[PlyCount "61"]
[EventDate "2022.06.18"]
[EventType "swiss"]
[EventCountry "CZE"]
[SourceTitle "playchess.com"]
[Source "ChessBase"]
[SourceQuality "1"]
[TimeControl "40/5400+30:1800+30"]

{[%evp 18,61,173,137,283,277,315,321,316,331,316,318,317,329,321,307,286,279,446,443,433,439,587,577,594,587,587,581,574,552,538,22,492,489,29979,29980,29980,29981,29981,29982,29982,29983,29983,29984,29995,29996]} 1. e4 {[%emt 0:09:44]} c5 {[%emt 0:00:06]} 2. Nc3 {[%emt 0:00:14]} a6 {[%emt 0:00:11]} 3. g3 {[%emt 0:00:12]} b5 {[%emt 0:00:09]} 4. Bg2 {[%emt 0:00:05]} Bb7 {[%emt 0:00:08]} 5. Nge2 {[%emt 0:00:14]} e6 {[%emt 0:06:25]} 6. O-O {[%emt 0:00:34]} Nf6 {[%emt 0:00:31]} 7. Re1 {[%emt 0:01:36]} Qc7 {[%emt 0:13:13]} 8. d4 {[%emt 0:02:54]} cxd4 {[%emt 0:08:07]} 9. Nxd4 {[%emt 0:00:38]} d6 {[%emt 0:01:29]} 10. a4 {[%emt 0:06:28]} bxa4 {[%emt 0:01:22] [#] B43: Sicilian: Kan Variation: 5 Nc3.} (10... Be7 $16) 11. Nd5 $1 {[%emt 0:04:54][%mdl 512] 11.Nd5 scores better than 11.Rxa4.} Nxd5 {[%emt 0:09:46]} (11... exd5 12. exd5+ Kd8 13. Rxa4 $18) (11... Bxd5 12. exd5) 12. exd5 {[%emt 0:00:19]} e5 {[%emt 0:00:03] White has a decisive advantage.} 13. c4 {[%emt 0:08:27]} (13. Rxa4 Be7 14. Nf5 Bf8 $18) 13... Nd7 {[%emt 0:15:08]} 14. Qxa4 {[%emt 0:01:46]} Be7 {[%emt 0:00:12] [#]} 15. Nf5 $146 {[%emt 0:02:12]} ({Predecessor:} 15. Nc6 Nc5 16. Qa3 Bxc6 17. dxc6 O-O 18. b4 Ne6 19. Be3 Rab8 20. Reb1 d5 21. cxd5 {1-0 (37) Bakalchuk,J (2400)-Dzagnidze,N (2522) Caleta 2018}) 15... g6 {[%emt 0:08:18]} 16. Nxe7 {[%emt 0:04:52]} Kxe7 {[%emt 0:00:07]} 17. Be3 {[%emt 0:00:18][%cal Oc4c5] Strongly threatening c5!} a5 {[%emt 0:03:49]} (17... Rhc8 $142 18. c5 Nxc5 19. Qh4+ Ke8 20. Qxh7 Qe7) 18. c5 {[%emt 0:04:23]} Nxc5 {[%emt 0:02:12]} 19. Rac1 {[%emt 0:01:46]} f6 {[%emt 0:08:33]} 20. Bxc5 {[%emt 0:15:51]} dxc5 {[%emt 0:00:06]} 21. d6+ {[%emt 0:01:50][%mdl 64] Decoy} Kxd6 {[%emt 0:01:21]} 22. Red1+ $1 {[%emt 0:00:14][%cal Be1d1,Bd1d6,Bd6d7][%mdl 32]} ({Weaker is} 22. Qb3 Bxg2 23. Kxg2 Rab8 24. Red1+ Ke7 $17) 22... Ke7 {[%emt 0:00:43] [#]} 23. Rxc5 $3 {[%emt 0:01:09][%mdl 512]} Qxc5 {[%emt 0:02:18]} 24. Qd7+ {[%emt 0:01:08]} Kf8 {[%emt 0:00:07] [#] And now ...Bxg2 would win.} 25. Rd6 $1 {[%emt 0:00:16]} Ra6 {[%emt 0:09:54]} (25... Qc1+ $18 26. Bf1 Qc6 27. Rxc6 Bxc6 28. Qxc6 Kg7 29. Qc7+ Kh6 30. Qc1+ Kg7 31. Qc7+ Kh6 32. Qc1+ Kg7 33. Qc7+) 26. Qd8+ {[%emt 0:02:07] White mates.} Kg7 {[%emt 0:00:06] [#]} 27. Qxf6+ $1 {[%emt 0:00:31]} ({Less strong is} 27. Rd7+ Kh6 28. Qxh8 Bxg2 29. Qxh7+ Kg5 30. Kxg2 (30. Qh4+ Kf5 $11) 30... Qc2 $16) 27... Kh6 {[%emt 0:00:06]} 28. Qh4+ {[%emt 0:00:28]} Kg7 {[%emt 0:00:05]} 29. Rd7+ {[%emt 0:00:03]} Kg8 {[%emt 0:00:10]} 30. Bxb7 {[%emt 0:00:11]} Re6 {[%emt 0:01:01]} 31. Bd5 {[%emt 0:00:51] Weighted Error Value: White=0.25 (precise) /Black=0.81} 1-0

[Event "Teplice Open 2022"]
[Site "Teplice"]
[Date "2022.06.21"]
[Round "4.5"]
[White "Kraus, Tomas"]
[Black "Sankalp Gupta"]
[Result "1/2-1/2"]
[ECO "E51"]
[WhiteElo "2472"]
[BlackElo "2505"]
[Annotator "RC"]
[PlyCount "61"]
[EventDate "2022.06.18"]
[EventType "swiss"]
[EventCountry "CZE"]
[SourceTitle "playchess.com"]
[Source "ChessBase"]
[SourceQuality "1"]
[TimeControl "40/5400+30:1800+30"]

1. d4 {[%emt 0:00:03]} Nf6 {[%emt 0:05:26]} 2. c4 {[%emt 0:00:46]} e6 {[%emt 0:00:05]} 3. Nc3 {[%emt 0:00:50]} Bb4 {[%emt 0:00:05]} 4. e3 {[%emt 0:00:36]} O-O {[%emt 0:02:01]} 5. Bd2 {[%emt 0:00:29]} d5 {[%emt 0:02:23]} 6. Nf3 {[%emt 0:00:40]} b6 {[%emt 0:00:01]} 7. cxd5 {[%emt 0:00:27]} exd5 {[%emt 0:00:02]} 8. Rc1 {[%emt 0:00:29]} Bb7 {[%emt 0:00:10]} 9. Bd3 {[%emt 0:01:01]} Be7 {[%emt 0:00:07]} 10. O-O {[%emt 0:02:54]} c5 {[%emt 0:00:09]} 11. Ne5 {[%emt 0:00:54]} Nc6 {[%emt 0:05:24]} 12. Be1 {[%emt 0:01:20]} Bd6 {[%emt 0:01:14]} 13. f4 {[%emt 0:01:10]} cxd4 {[%emt 0:00:58]} 14. Nb5 {[%emt 0:00:10]} Bxe5 {[%emt 0:15:14]} 15. fxe5 {[%emt 0:00:30]} Nxe5 {[%emt 0:00:40]} 16. exd4 {[%emt 0:00:35]} Nxd3 {[%emt 0:12:45]} 17. Qxd3 {[%emt 0:00:30]} Ba6 {[%emt 0:04:10]} 18. Bh4 {[%emt 0:05:51]} Bxb5 {[%emt 0:00:44]} 19. Qxb5 {[%emt 0:00:54]} Qe8 {[%emt 0:00:09]} 20. Qxe8 {[%emt 0:06:15]} Raxe8 {[%emt 0:01:27]} 21. Bxf6 {[%emt 0:04:10]} gxf6 {[%emt 0:00:03]} 22. Rc7 {[%emt 0:04:23]} Re2 {[%emt 0:00:26]} 23. Rxa7 {[%emt 0:05:16]} Rc8 {[%emt 0:02:08]} 24. Ra3 {[%emt 0:10:38]} Rxb2 {[%emt 0:01:06]} 25. h3 {[%emt 0:04:04]} Rcc2 {[%emt 0:05:05]} 26. Rg3+ {[%emt 0:01:47]} Kf8 {[%emt 0:00:02]} 27. Rxf6 {[%emt 0:00:27]} Rb1+ {[%emt 0:00:40]} 28. Kh2 {[%emt 0:03:21]} Rxa2 {[%emt 0:00:23]} 29. Rgf3 {[%emt 0:02:19]} Ra7 {[%emt 0:00:08]} 30. Rd6 {[%emt 0:02:39]} b5 {[%emt 0:01:18]} 31. Rxd5 {[%emt 0:02:31]} 1/2-1/2

[Event "Teplice Open 2022"]
[Site "Teplice"]
[Date "2022.06.21"]
[Round "4.6"]
[White "Kaasen, Tor Fredrik"]
[Black "Santos Latasa, Jaime"]
[Result "0-1"]
[ECO "B81"]
[WhiteElo "2461"]
[BlackElo "2672"]
[Annotator "TA"]
[PlyCount "64"]
[EventDate "2022.06.18"]
[EventType "swiss"]
[EventCountry "CZE"]
[SourceTitle "playchess.com"]
[Source "ChessBase"]
[SourceQuality "1"]
[TimeControl "40/5400+30:1800+30"]

{[%evp 14,64,25,23,30,11,19,18,22,22,12,18,16,26,27,-29,0,0,27,27,51,68,130,125,131,139,123,-48,-58,-131,-102,-145,-166,-169,-165,-249,-258,-303,-311,-308,-295,-356,-363,-368,-369,-856,-845,-1159,-1130,-1486,-1461,-1203,-1043]} 1. e4 {[%emt 0:03:53]} c5 {[%emt 0:00:07]} 2. Nf3 {[%emt 0:00:18]} d6 {[%emt 0:00:04]} 3. d4 {[%emt 0:00:42]} cxd4 {[%emt 0:00:02]} 4. Nxd4 {[%emt 0:00:09]} Nf6 {[%emt 0:00:03]} 5. Nc3 {[%emt 0:00:14]} a6 {[%emt 0:00:03]} 6. h3 {[%emt 0:00:47][%cal Bh2h3,Bh3h4,Bh4g5][%mdl 32]} e6 {[%emt 0:00:15]} 7. g4 {[%emt 0:00:48]} h6 {[%emt 0:00:05]} 8. Bg2 {[%emt 0:03:23]} Be7 {[%emt 0:00:34] B81: Sicilian Scheveningen: Keres Attack.} 9. h4 {[%emt 0:00:30]} Nc6 {[%emt 0:00:30]} 10. g5 {[%emt 0:03:31]} hxg5 {[%emt 0:00:30] The position is equal.} 11. hxg5 {[%emt 0:00:30]} Rxh1+ {[%emt 0:00:30]} 12. Bxh1 {[%emt 0:00:30]} Nh7 {[%emt 0:00:00]} 13. Nxc6 {[%emt 0:02:52]} bxc6 {[%emt 0:00:00] [#]} 14. f4 $146 {[%emt 0:00:30]} (14. Qh5 $142 Nf8 15. Be3) ({Predecessor:} 14. Qh5 Nf8 15. Bd2 g6 16. Qh4 e5 17. O-O-O Ne6 18. Rg1 Rb8 19. b3 Qb6 20. Bf3 a5 21. Na4 Qd4 22. Bc3 Qa7 23. Bd2 Qd4 24. Bc3 Qa7 25. Bd2 {½-½ (25) Sethuraman,S (2638)-Zhou,J (2623) Tianjin 2020}) 14... Nf8 {[%emt 0:04:41]} 15. Qg4 {[%emt 0:12:50]} Rb8 {[%emt 0:09:30]} 16. b3 {[%emt 0:05:07]} e5 {[%emt 0:02:10]} 17. f5 {[%emt 0:02:42]} Nh7 {[%emt 0:01:44]} (17... g6 $14) 18. g6 $16 {[%emt 0:02:28]} Nf6 {[%emt 0:00:39]} 19. gxf7+ {[%emt 0:08:15]} Kxf7 {[%emt 0:01:15]} 20. Qe2 {[%emt 0:00:33]} (20. Qg6+ $1 $16 Kf8 21. Bd2) 20... Qh8 $1 $15 {[%emt 0:19:21]} 21. Bf3 {[%emt 0:10:33] [#]} ({White should try} 21. Bg2 $15) 21... d5 $1 $36 {[%emt 0:03:44][%mdl 2048] White is under strong pressure.} 22. exd5 {[%emt 0:05:29]} Bb4 {[%emt 0:00:33]} 23. Bd2 {[%emt 0:17:18] 0-0-0 is the strong threat.} Qh4+ {[%emt 0:01:49][%mdl 1024] Black has strong compensation.} 24. Kd1 {[%emt 0:05:00]} (24. Qf2 $142 Qxf2+ 25. Kxf2 cxd5 26. Rd1) 24... Qd4 $19 {[%emt 0:05:40]} 25. Qc4 {[%emt 0:02:11]} Qg1+ {[%emt 0:02:15][%mdl 64] Skewer} ({Weaker is} 25... Bxf5 26. Qxd4 (26. dxc6+ $2 Qxc4 27. bxc4 e4 $19) 26... exd4 27. Ne2 Nxd5 28. Nxd4 Nc3+ 29. Ke1 Re8+ 30. Kf1 Bh3+ 31. Bg2 Bxg2+ 32. Kxg2 $11) 26. Ke2 {[%emt 0:03:52] [#]} Qh2+ $1 {[%emt 0:06:24]} ({Not} 26... Qxa1 27. dxc6+ Kf8 28. Nd5 Nxd5 29. c7 $11) 27. Ke1 {[%emt 0:02:25]} Bxf5 {[%emt 0:03:04] Strongly threatening ...e4.} 28. dxc6+ {[%emt 0:01:14]} Be6 {[%emt 0:00:06] Really sharp!} 29. Qf1 {[%emt 0:03:41]} (29. Qe2 Qg1+ 30. Qf1) 29... Rd8 {[%emt 0:01:57][%csl Gd8][%cal Rh2d2] Black is clearly winning.} 30. Qg2 {[%emt 0:01:31]} Qh4+ {[%emt 0:01:15]} 31. Ke2 {[%emt 0:00:09] [#]} Rxd2+ $1 {[%emt 0:00:08][%mdl 576] Remove Defender, Decoy} 32. Kxd2 {[%emt 0:00:19]} Bxc3+ {[%emt 0:00:06] Weighted Error Value: White=0.76/Black=0.06 (flawless)} 0-1